bitfinex/quotes_ETHUSD_20250424
["timestamp","ask_amount","ask_price","bid_price","bid_amount"]
[1745482904775,1.10810153,1749.6,1749.2,5.71678634]
[1745482905078,1.10810153,1749.6,1749.1,8.71703467]
[1745482905262,1.10810153,1749.6,1749.1,9.58873814]
[1745482905456,0.7948,1749.6,1749.1,9.58873814]
[1745482905636,0.7948,1749.6,1749.1,9.58870762]
[1745482905955,0.7948,1749.6,1749.3,3.0]
[1745482906156,6.7198,1749.6,1749.3,3.0]
[1745482906362,6.7198,1749.6,1749.3,3.87166685]
[1745482906782,6.7198,1749.6,1749.3,0.87166685]
[1745482906947,6.7198,1749.6,1749.2,8.71679125]
[1745482908171,6.7198,1749.6,1749.3,5.71648784]
[1745482908372,6.7198,1749.6,1749.3,6.14650961]
[1745482908570,5.925,1749.6,1749.4,8.71604641]
[1745482908746,18.862,1749.7,1749.6,5.71559213]
[1745482908949,18.862,1749.7,1749.6,8.71559213]
[1745482909179,18.862,1749.7,1749.6,10.23529323]
[1745482909387,5.711,1749.8,1749.6,10.23529323]
[1745482909587,5.711,1749.8,1749.6,3.0]
[1745482910894,5.711,1749.8,1749.6,3.43255131]
[1745482912120,0.7547,1750.1,1749.7,8.71526547]
[1745482912407,5.711,1750.0,1749.7,8.71526547]
[1745482912558,0.7547,1750.1,1749.7,8.71526547]
[1745482912760,0.7547,1750.1,1749.8,3.87152655]
[1745482912956,0.7547,1750.1,1749.7,3.0]
[1745482913585,0.7547,1750.1,1749.6,6.97702121]
[1745482913789,0.7547,1750.1,1749.8,3.0]
[1745482915321,0.7547,1750.1,1749.7,3.0]
[1745482915806,0.7547,1750.1,1749.7,8.71522729]
[1745482916001,0.7547,1750.1,1749.7,10.28445101]
[1745482917084,0.7547,1750.1,1749.9,3.0]
[1745482917991,5.711,1750.2,1750.1,3.0]
[1745482918569,24.574,1750.4,1750.1,8.71382542]
[1745482919106,24.574,1750.4,1750.1,8.71376464]
[1745482919283,24.574,1750.4,1750.1,10.23957303]
[1745482919482,24.574,1750.4,1750.1,10.67480049]
[1745482920210,24.574,1750.4,1750.1,4.96103585]
[1745482921535,24.574,1750.4,1750.3,5.71330629]
[1745482921837,4.935,1750.7,1750.6,3.0]
[1745482922132,5.71,1750.8,1750.5,3.0]
[1745482923636,5.71,1750.8,1750.4,0.7993]
[1745482923804,5.71,1750.8,1750.3,3.0]
[1745482924417,5.71,1750.8,1750.2,0.8206]
[1745482924624,5.71,1750.8,1750.2,3.8206]
[1745482924832,5.71,1750.8,1750.1,0.43522746]
[1745482924833,0.7915,1750.7,1750.1,0.43522746]
[1745482925043,0.7915,1750.7,1750.0,3.7511]
[1745482925403,0.7915,1750.7,1750.0,10.41174582]
[1745482925602,0.7915,1750.7,1750.1,5.71395037]
[1745482925918,0.7915,1750.7,1750.1,5.71375537]
[1745482926117,0.7915,1750.7,1750.0,10.41180465]
[1745482926317,0.7915,1750.7,1750.0,4.69765555]
[1745482926516,0.7915,1750.7,1750.1,3.0]
[1745482926723,0.7915,1750.7,1750.1,4.04116367]
[1745482927020,0.7915,1750.7,1750.1,3.0]
[1745482927214,0.7915,1750.7,1750.0,6.46515656]
[1745482927215,0.7915,1750.7,1749.8,5.71478095]
[1745482927416,0.7915,1750.7,1749.8,5.71492618]
[1745482927745,0.7915,1750.7,1749.7,5.32352372]
[1745482927949,0.7915,1750.7,1749.7,8.03877125]
[1745482928161,0.7915,1750.7,1749.7,3.7543]
[1745482928449,0.7915,1750.7,1749.8,3.0]
[1745482928803,0.7915,1750.7,1749.6,6.14801825]
[1745482929006,0.7915,1750.7,1749.6,0.43255131]
[1745482929335,0.7915,1750.7,1749.3,1.53755223]
[1745482929336,0.7779,1750.5,1749.3,1.53755223]
[1745482929538,0.7743,1750.3,1749.2,5.71667413]
[1745482929720,0.7743,1750.3,1749.3,0.57166741]
[1745482929926,0.7743,1750.1,1749.3,0.57166741]
[1745482930230,0.7743,1749.9,1749.1,3.0]
[1745482930435,0.7743,1749.9,1749.0,5.71731986]
[1745482930639,0.7743,1749.9,1749.0,5.71731601]
[1745482930836,0.7743,1749.9,1748.9,6.79561038]
[1745482931034,0.7743,1749.9,1748.9,1.07795383]
[1745482931257,0.7743,1749.9,1748.9,0.28005383]
[1745482931558,0.7743,1749.9,1748.8,3.0]
[1745482931766,0.7743,1749.9,1748.7,3.0]
[1745482931973,0.7743,1749.9,1748.7,4.30568113]
[1745482932152,0.8229,1749.8,1748.7,1.30568113]
[1745482932328,0.8229,1749.6,1748.6,0.28474863]
[1745482932532,0.8004,1749.4,1748.4,6.03341904]
[1745482932755,0.8004,1749.2,1748.4,6.03341904]
[1745482933115,0.8004,1749.0,1748.4,6.63676094]
[1745482934239,5.711,1748.9,1748.7,3.0]
[1745482934449,5.711,1748.9,1748.5,10.26427185]
[1745482934657,5.711,1748.9,1748.5,4.54525223]
[1745482934882,5.711,1748.9,1748.5,4.08679378]
[1745482935079,5.711,1748.9,1748.5,1.08679378]
[1745482935286,5.711,1748.9,1748.4,3.6033419]
[1745482935465,5.711,1748.9,1748.3,6.77920235]
[1745482935466,5.711,1748.9,1748.3,3.28699559]
[1745482935669,0.7677,1748.8,1748.3,9.00682424]
[1745482935869,0.7677,1748.8,1748.3,0.28699559]
[1745482936071,0.7677,1748.8,1748.3,3.0]
[1745482936268,0.7677,1748.8,1748.6,3.0]
[1745482936470,0.7677,1748.8,1748.5,3.0]
[1745482936796,5.711,1748.9,1748.8,3.0]
[1745482936947,5.711,1749.0,1748.9,3.0]
[1745482937152,5.711,1749.0,1748.7,8.71852575]
[1745482937350,5.711,1749.0,1748.9,3.0]
[1745482937672,5.711,1749.0,1748.7,10.18245551]
[1745482938176,5.711,1749.0,1748.9,8.71787981]
[1745482938377,18.859,1749.3,1749.0,3.0]
[1745482938577,24.571,1749.3,1749.0,9.01738716]
[1745482938778,24.571,1749.3,1749.1,5.71712188]
[1745482939092,0.7552,1749.6,1749.3,8.71651542]
[1745482939250,18.866,1750.1,1749.3,8.71634007]
[1745482939447,6.3562,1750.0,1749.5,3.0]
[1745482939792,6.3562,1750.0,1749.7,5.71523193]
[1745482940644,18.866,1750.1,1749.9,3.0]
[1745482940780,24.467,1750.1,1749.9,3.0]
[1745482940987,24.467,1750.1,1749.7,3.0]
[1745482941151,24.467,1750.1,1749.8,3.3]
[1745482941356,24.467,1750.1,1749.8,9.01481488]
[1745482941702,5.571,1750.1,1749.8,3.3]
[1745482942011,5.571,1750.1,1749.6,3.0]
[1745482942152,0.8329,1750.0,1749.2,0.8248]
[1745482942355,0.8329,1750.0,1749.2,6.54157637]
[1745482942780,0.8329,1750.0,1749.2,6.54153443]
[1745482943053,0.8329,1750.0,1749.2,5.71673443]
[1745482943253,0.8329,1750.0,1749.3,3.0]
[1745482943496,0.8329,1750.0,1749.2,1.14338394]
[1745482944380,0.8329,1750.0,1749.2,4.14338394]
[1745482944907,0.8329,1750.0,1749.2,1.57913371]
[1745482945103,0.8329,1750.0,1749.2,7.29572524]
[1745482945287,0.8329,1750.0,1749.3,0.72957252]
[1745482945607,0.8329,1750.0,1749.2,0.43574977]
[1745482945816,0.8329,1750.0,1749.0,5.71738616]
[1745482946121,0.7609,1749.8,1748.8,5.71790735]
[1745482946422,5.6,1749.7,1749.0,5.7173587]
[1745482946585,5.6,1749.7,1749.1,3.0]
[1745482946787,0.8059,1749.6,1749.0,3.57173587]
[1745482946994,0.8059,1749.6,1748.9,5.71782477]
[1745482947207,0.8059,1749.6,1749.0,11.43486602]
[1745482947409,0.8059,1749.6,1749.1,8.71720791]
[1745482947587,0.8059,1749.6,1749.1,10.16066172]
[1745482947926,0.8059,1749.6,1749.1,4.44345381]
[1745482948180,0.8059,1749.6,1749.1,3.0]
[1745482948316,0.8059,1749.6,1749.0,3.0]
[1745482949394,0.8059,1749.6,1749.2,3.0]
[1745482950320,0.8059,1749.6,1749.2,3.43708341]
[1745482951814,0.8059,1749.6,1749.1,3.0]
[1745482952004,0.8059,1749.6,1748.9,8.71787404]
[1745482952332,0.8059,1749.6,1748.6,5.71857836]
[1745482952513,0.8059,1749.6,1748.7,0.57185784]
[1745482952722,0.8059,1749.6,1748.8,3.0]
[1745482953197,0.8059,1749.6,1748.7,0.42400735]
[1745482953398,0.8059,1749.6,1748.9,3.0]
[1745482953792,0.8059,1749.6,1748.9,8.71780134]
[1745482954026,5.601,1749.5,1748.8,3.0]
[1745482954325,5.601,1749.5,1748.8,9.5899277]
[1745482954922,5.601,1749.5,1748.8,15.30796148]
[1745482955115,5.601,1749.5,1749.0,3.0]
[1745482955325,0.8166,1749.4,1748.9,8.71783685]
[1745482955511,0.8166,1749.4,1749.2,3.0]
[1745482955691,0.8166,1749.4,1749.2,9.14744518]
[1745482955897,0.8142,1749.6,1749.2,10.01910546]
[1745482956096,5.601,1749.5,1749.2,10.01910546]
[1745482956534,5.601,1749.5,1749.2,4.30236609]
[1745482956739,5.601,1749.5,1749.2,10.01914468]
[1745482957327,5.601,1749.5,1749.2,0.43065688]
[1745482957504,5.601,1749.5,1748.9,3.0]
[1745482958130,5.601,1749.5,1748.9,8.71781187]
[1745482958704,5.601,1749.5,1748.9,8.71770377]
[1745482958903,5.601,1749.5,1749.0,5.71738579]
[1745482959154,5.601,1749.5,1749.0,1.44350896]
[1745482959303,0.783,1749.4,1748.9,3.0]
[1745482959502,0.783,1749.4,1749.0,3.0]
[1745482959715,0.783,1749.4,1749.1,5.71709609]
[1745482959947,0.783,1749.4,1749.0,8.71732864]
[1745482960313,0.783,1749.4,1749.0,8.71732011]
[1745482960506,0.792,1749.7,1749.3,3.0]
[1745482960706,5.601,1749.6,1749.2,3.0]
[1745482961608,5.601,1749.6,1749.2,8.71677009]
[1745482961831,5.601,1749.6,1749.2,3.0]
[1745482962009,5.601,1749.6,1749.2,8.71684645]
[1745482962232,5.601,1749.6,1749.2,10.16023165]
[1745482962436,5.601,1749.6,1749.2,4.4433852]
[1745482962937,5.601,1749.6,1749.3,3.0]
[1745482963113,5.601,1749.6,1749.3,8.7164671]
[1745482963349,5.601,1749.5,1749.3,3.0]
[1745482963655,5.601,1749.4,1749.3,3.0]
[1745482964188,0.792,1749.7,1749.5,3.0]
[1745482964503,18.865,1749.9,1749.7,3.0]
[1745482964504,5.601,1749.8,1749.7,3.0]
[1745482964648,18.865,1749.9,1749.7,8.71504706]
[1745482964849,18.865,1749.9,1749.8,3.0]
[1745482965497,19.6354,1749.9,1749.8,3.0]
[1745482966781,19.6354,1749.9,1749.3,3.7871]
[1745482967096,19.6354,1749.9,1749.3,3.0]
[1745482967301,19.6354,1749.9,1749.4,3.0]
[1745482967683,19.6354,1749.9,1749.3,3.0]
[1745482968097,19.6354,1749.9,1749.2,3.42602428]
[1745482968682,19.6354,1749.9,1749.2,6.14283345]
[1745482968901,19.6354,1749.9,1749.2,7.41181635]
[1745482969065,0.7646,1749.8,1749.2,0.42602428]
[1745482969261,0.7646,1749.8,1749.3,3.0]
[1745482969565,0.7646,1749.8,1749.2,3.0]
[1745482969768,0.7646,1749.8,1749.1,3.0]
[1745482970268,0.7646,1749.8,1749.1,4.44347312]
[1745482970782,0.7646,1749.8,1749.1,10.59057763]
[1745482970977,0.7646,1749.8,1749.1,4.87355359]
[1745482971493,0.7646,1749.8,1749.1,10.5907552]
[1745482972482,0.7646,1749.8,1749.1,3.43008047]
[1745482972900,0.7646,1749.8,1749.1,0.43008047]
[1745482973095,0.7646,1749.8,1749.0,3.0]
[1745482973096,0.7646,1749.8,1749.0,8.71751409]
[1745482973409,0.7646,1749.8,1749.0,14.43488006]
[1745482973605,0.7646,1749.8,1749.1,5.7171108]
[1745482973904,0.7646,1749.8,1749.1,7.16055848]
[1745482974105,0.7646,1749.8,1749.1,1.44344768]
[1745482974271,0.7646,1749.8,1749.1,3.0]
[1745482975109,0.7646,1749.8,1749.1,8.717098]
[1745482975405,0.7646,1749.8,1749.1,9.15352336]
[1745482975566,0.7646,1749.8,1749.1,6.15352336]
[1745482975991,0.7646,1749.8,1749.1,3.43642536]
[1745482976213,5.515,1749.7,1749.1,3.43642536]
[1745482976409,5.515,1749.7,1749.1,10.64058615]
[1745482976587,5.515,1749.7,1749.1,9.15344594]
[1745482976789,0.7646,1749.8,1749.3,3.0]
[1745482976790,5.515,1749.6,1749.3,3.0]
[1745482977175,0.7646,1749.8,1749.4,5.71611259]
[1745482977375,5.515,1749.6,1749.5,3.0]
[1745482977575,5.515,1749.7,1749.6,3.0]
[1745482979284,5.515,1749.7,1749.6,8.71559213]
[1745482979603,5.515,1749.8,1749.7,3.0]
[1745482979808,24.38,1749.9,1749.7,8.71526547]
[1745482980126,24.38,1749.9,1749.8,0.87152655]
[1745482980773,24.38,1749.9,1749.7,3.0]
[1745482982896,0.8185,1749.8,1749.5,5.71591821]
[1745482983103,0.8185,1749.8,1749.5,3.0]
[1745482983984,0.8185,1749.8,1749.4,0.42408174]
[1745482984184,0.8185,1749.8,1749.1,12.22499941]
[1745482984417,0.8185,1749.8,1749.2,1.22249994]
[1745482984621,0.8185,1749.8,1749.2,6.93932656]
[1745482984824,0.8185,1749.8,1749.3,3.0]
[1745482985022,0.8185,1749.8,1749.3,0.42169363]
[1745482985187,0.8185,1749.8,1749.1,3.0]
[1745482986600,0.8185,1749.8,1749.1,8.7171907]
[1745482987329,0.8185,1749.8,1749.1,3.0]
[1745482987494,0.8185,1749.8,1749.1,0.87172529]
[1745482987689,0.8185,1749.8,1749.0,8.71742914]
[1745482988522,0.8185,1749.8,1749.0,9.14743834]
[1745482988829,0.8185,1749.8,1749.0,14.86485052]
[1745482989037,0.8185,1749.8,1749.0,9.14742138]
[1745482989205,0.8185,1749.8,1749.0,10.63393622]
[1745482989726,0.8185,1749.8,1749.0,10.63385003]
[1745482989890,0.8185,1749.8,1749.2,3.0]
[1745482990293,0.8185,1749.8,1749.1,3.0]
[1745482990788,0.8185,1749.8,1749.1,8.71722123]
[1745482991091,0.8185,1749.8,1749.1,10.35232774]
[1745482991325,0.8185,1749.8,1749.1,4.63510651]
[1745482991688,0.8185,1749.8,1749.4,8.71615624]
[1745482992226,0.8185,1749.8,1749.4,3.0]
[1745482992726,18.865,1749.9,1749.7,3.0]
[1745482992929,5.515,1749.8,1749.6,3.0]
[1745482993734,5.515,1749.8,1749.6,3.4333116]
[1745482994794,5.515,1749.8,1749.6,0.4333116]
[1745482994994,5.515,1749.8,1749.5,3.0]
[1745482995206,5.515,1749.8,1749.5,8.7157955]
[1745482995408,5.515,1749.8,1749.5,3.0]
[1745482996024,5.515,1749.8,1749.4,3.0]
[1745482996425,5.515,1749.8,1749.2,6.51516976]
[1745482996591,5.515,1749.8,1749.3,3.0]
[1745482996793,0.8277,1749.7,1749.3,0.4218624]
[1745482997025,0.8277,1749.7,1748.7,0.8264]
[1745482997232,0.8277,1749.7,1748.7,0.41821752]
[1745482997508,0.8277,1749.7,1748.7,8.7185208]
[1745482997710,0.8277,1749.7,1748.7,10.58541896]
[1745482998010,0.8277,1749.7,1748.7,10.58521353]
[1745482998738,0.8277,1749.7,1748.8,5.71820333]
[1745482998946,0.8277,1749.7,1749.0,3.0]
[1745482999304,0.7897,1749.5,1749.0,3.0]
[1745483000253,0.7897,1749.5,1749.1,0.3]
[1745483000407,0.7897,1749.5,1748.9,3.0]
[1745483002252,0.7897,1749.5,1748.8,3.0]
[1745483002854,0.7897,1749.5,1748.8,8.71816919]
[1745483003056,0.7897,1749.5,1748.8,3.0]
[1745483004910,0.7897,1749.5,1748.9,3.0]
[1745483005105,0.7897,1749.5,1748.9,3.87179908]
[1745483005951,0.7897,1749.5,1748.9,0.87179908]
[1745483006159,0.7897,1749.5,1748.8,8.71813143]
[1745483008155,0.7897,1749.5,1748.8,3.0]
[1745483009119,0.7897,1749.5,1748.8,8.71811594]
[1745483009318,0.7897,1749.5,1748.8,3.0]
[1745483009537,0.7897,1749.5,1748.8,8.71818039]
[1745483009733,0.7897,1749.5,1748.9,6.58955162]
[1745483009943,0.7897,1749.5,1749.1,3.0]
[1745483010142,0.7897,1749.5,1749.0,3.0]
[1745483010509,5.418,1749.4,1749.0,3.0]
[1745483011252,5.418,1749.4,1748.9,3.87181804]
[1745483011423,5.418,1749.4,1749.0,3.3871818]
[1745483013512,0.8274,1749.3,1748.9,9.58960544]
[1745483013721,0.8274,1749.3,1749.1,3.0]
[1745483014042,5.418,1749.4,1749.1,8.71710268]
[1745483014241,5.418,1749.4,1749.1,10.16055415]
[1745483014573,5.419,1749.3,1749.2,8.71675199]
[1745483015164,0.8274,1749.5,1749.3,3.0]
[1745483015165,5.419,1749.4,1749.3,3.0]
[1745483020744,5.419,1749.4,1749.3,8.71657234]
[1745483020949,0.7502,1749.7,1749.4,3.0]
[1745483021159,5.418,1749.6,1749.4,3.0]
[1745483022163,5.418,1749.6,1749.3,4.48712586]
[1745483023498,5.418,1749.6,1749.3,10.20368086]
[1745483025367,5.418,1749.6,1749.3,4.48712586]
[1745483025548,5.418,1749.6,1749.3,3.0]
[1745483026067,5.418,1749.6,1749.3,8.71654505]
[1745483026469,5.418,1749.6,1749.3,3.0]
[1745483027049,5.418,1749.6,1749.2,3.43794023]
[1745483027260,5.418,1749.6,1749.2,9.15471472]
[1745483027438,5.418,1749.6,1749.2,10.71923592]
[1745483027978,5.418,1749.6,1749.2,5.00246143]
[1745483028163,5.418,1749.6,1749.2,0.43794023]
[1745483028506,5.418,1749.6,1749.1,8.71717374]
[1745483029071,5.418,1749.6,1749.3,3.0]
[1745483029238,5.418,1749.6,1749.5,3.0]
[1745483029439,5.418,1749.6,1749.4,3.0]
[1745483030679,5.418,1749.6,1749.3,3.7805]
[1745483030841,5.418,1749.6,1749.3,3.0]
[1745483034075,5.418,1749.6,1749.2,0.42488581]
[1745483034275,5.418,1749.6,1749.1,3.797]
[1745483034807,5.418,1749.6,1749.1,9.51422137]
[1745483034981,5.418,1749.6,1749.1,5.71722137]
[1745483035281,5.418,1749.6,1749.1,3.0]
[1745483035575,0.8216,1749.5,1749.1,3.0]
[1745483036379,5.273,1749.4,1749.1,3.0]
[1745483036578,5.273,1749.4,1749.1,10.16067205]
[1745483037766,5.273,1749.4,1749.1,4.44346533]
[1745483041098,5.273,1749.4,1749.1,10.16068558]
[1745483041416,5.273,1749.4,1749.1,4.44346533]
[1745483041891,4.28641149,1749.4,1749.3,8.71657234]
[1745483042090,3.36123749,1749.4,1749.3,5.22823188]
[1745483042324,3.36123749,1749.4,1749.3,3.0]
[1745483043223,3.36123749,1749.4,1748.7,1.20809171]
[1745483043224,4.16393749,1749.4,1748.7,1.20809171]
[1745483043522,0.8027,1749.3,1748.7,0.42319171]
[1745483043688,0.8027,1749.3,1748.6,3.0]
[1745483043889,0.8027,1749.3,1748.6,4.37749444]
[1745483044616,0.8027,1749.3,1748.6,1.37749444]
[1745483044815,0.8027,1749.3,1748.6,4.37749444]
[1745483044993,0.8027,1749.3,1748.6,10.09625104]
[1745483045920,0.8027,1749.3,1748.6,1.37749444]
[1745483047145,0.8027,1749.3,1748.6,7.09634445]
[1745483047643,0.8027,1749.3,1748.6,1.37749444]
[1745483047828,0.78868565,1749.3,1748.6,1.37749444]
[1745483048025,0.78868565,1749.3,1748.7,3.0]
[1745483048225,5.273,1749.2,1749.0,3.0]
[1745483049641,5.274,1749.1,1749.0,8.71744431]
[1745483050334,5.274,1749.1,1749.0,3.0]
[1745483052211,5.274,1749.1,1748.9,3.0]
[1745483052411,5.274,1749.1,1748.9,8.71776327]
[1745483052625,5.274,1749.1,1749.0,0.87177633]
[1745483053344,5.274,1749.1,1748.9,8.71786616]
[1745483054755,5.274,1749.1,1748.9,3.0]
[1745483055260,5.274,1749.1,1748.9,8.71787776]
[1745483057298,5.274,1749.1,1748.9,3.0]
[1745483058906,5.274,1749.1,1748.8,0.3]
[1745483059105,5.274,1749.1,1748.7,3.0]
[1745483059617,5.274,1749.1,1748.6,4.37749444]
[1745483060011,5.274,1749.1,1748.6,10.09632006]
[1745483060598,0.8282,1749.0,1748.6,4.37749444]
[1745483060801,0.8282,1749.0,1748.6,1.37749444]
[1745483061139,0.8282,1749.0,1748.6,4.37749444]
[1745483061275,0.8282,1749.0,1748.6,1.37749444]
[1745483066429,0.8282,1749.0,1748.6,0.42710256]
[1745483066725,0.8282,1749.0,1748.5,8.71901858]
[1745483066931,0.8282,1749.0,1748.5,3.0]
[1745483067419,0.8282,1749.0,1748.5,8.71914361]
[1745483067627,0.8282,1749.0,1748.6,5.71875803]
[1745483067784,0.8282,1749.0,1748.6,7.2049501]
[1745483067979,0.8282,1749.0,1748.8,3.0]
[1745483069044,0.8282,1749.0,1748.5,3.42417543]
[1745483069223,0.8282,1749.0,1748.5,9.14330649]
[1745483073275,0.8282,1749.0,1748.5,0.42417543]
[1745483073562,0.8282,1749.0,1748.5,3.0]
[1745483073860,5.163,1748.9,1748.5,4.29890722]
[1745483074156,5.163,1748.9,1748.5,1.29890722]
[1745483077167,0.8281,1748.8,1748.5,0.42697955]
[1745483077370,0.8281,1748.8,1748.4,3.0]
[1745483077969,0.8281,1748.8,1748.4,0.42020278]
[1745483078267,0.8281,1748.8,1748.0,0.77275223]
[1745483078482,0.8281,1748.8,1748.0,0.27872985]
[1745483078714,0.8281,1748.8,1748.0,6.42227536]
[1745483078832,5.163,1748.7,1748.0,7.13571088]
[1745483079176,0.7949,1748.5,1748.1,3.0]
[1745483079383,5.163,1748.4,1748.1,3.0]
[1745483081265,5.163,1748.4,1748.0,0.77275223]
[1745483081676,5.163,1748.4,1747.9,3.0]
[1745483081837,5.163,1748.4,1747.9,9.59326761]
[1745483082038,5.163,1748.4,1747.9,3.87212445]
[1745483082367,0.818,1748.3,1747.9,4.15486757]
[1745483082544,0.818,1748.3,1747.9,0.70384121]
[1745483082744,0.818,1748.3,1747.7,9.24695179]
[1745483083872,0.818,1748.3,1747.7,9.24691675]
[1745483084072,0.818,1748.3,1747.9,3.0]
[1745483084573,0.818,1748.3,1748.0,3.0]
[1745483084944,0.818,1748.3,1747.3,0.65117941]
[1745483085962,5.164,1748.2,1747.3,0.65117941]
[1745483086135,0.8003,1748.1,1747.3,0.65117941]
[1745483086945,5.164,1748.0,1747.3,0.93837308]
[1745483087238,0.8295,1747.8,1747.5,3.0]
[1745483087447,5.165,1747.7,1747.5,3.0]
[1745483088236,5.165,1747.6,1747.5,3.0]
[1745483088471,5.165,1747.6,1747.3,1.76352906]
[1745483088655,5.165,1747.6,1747.3,7.48647029]
[1745483088861,5.165,1747.6,1747.3,1.76352906]
[1745483089108,5.165,1747.6,1747.3,0.65117941]
[1745483089109,0.8284,1747.5,1747.3,0.65117941]
[1745483091075,0.7985,1747.4,1747.3,0.65117941]
[1745483093274,0.7985,1747.4,1747.3,0.76109145]
[1745483096959,5.231,1747.4,1747.3,0.76109145]
[1745483097160,0.55,1747.3,1746.4,0.65117784]
[1745483097495,0.55,1746.5,1745.9,2.13218924]
[1745483097707,0.5216,1746.2,1745.9,2.13218924]
[1745483098062,5.231,1746.1,1745.9,2.13218924]
[1745483098306,0.7703,1746.0,1745.9,2.13218924]
[1745483098601,6.0013,1746.0,1745.9,2.08218924]
[1745483100193,0.0356,1746.0,1745.6,0.37896006]
[1745483100500,0.0356,1745.9,1745.6,0.37896006]
[1745483100806,5.601,1745.8,1745.6,0.37896006]
[1745483101630,0.0356,1745.9,1745.6,0.37896006]
[1745483101831,5.601,1745.8,1745.6,0.37896006]
[1745483101971,0.0356,1745.9,1745.6,6.10751628]
[1745483102298,5.601,1745.8,1745.7,0.72652528]
[1745483102483,0.5216,1746.2,1745.7,0.91667365]
[1745483102687,0.5216,1746.2,1746.0,3.0]
[1745483103031,0.5216,1746.2,1746.1,0.12499857]
[1745483103837,5.6386,1746.8,1746.3,0.7876]
[1745483104118,5.6386,1746.8,1746.4,0.12345192]
[1745483105715,5.6386,1746.8,1746.1,8.72687758]
[1745483105913,0.0356,1746.8,1746.5,0.12344179]
[1745483106113,5.603,1746.7,1746.4,3.0]
[1745483106352,18.898,1747.3,1746.6,3.12343166]
[1745483106353,0.0356,1747.1,1746.6,3.12343166]
[1745483106516,5.603,1747.0,1746.6,3.0]
[1745483106679,5.603,1747.0,1746.7,0.12342154]
[1745483106881,5.603,1747.0,1746.4,3.0]
[1745483107211,5.603,1747.0,1746.5,0.12344179]
[1745483107414,5.603,1747.0,1746.5,5.84900036]
[1745483107614,5.603,1746.9,1746.7,3.0]
[1745483107787,5.603,1746.9,1746.5,0.92764179]
[1745483107990,5.603,1746.9,1746.8,0.12341141]
[1745483108191,5.603,1746.9,1746.6,3.0]
[1745483108394,5.603,1746.9,1746.7,0.12342154]
[1745483108701,5.603,1746.9,1746.3,8.72618486]
[1745483109034,5.603,1746.9,1746.5,5.72558244]
[1745483109319,5.603,1746.9,1746.6,5.84883878]
[1745483109621,5.603,1746.9,1746.6,0.12343166]
[1745483110137,5.603,1746.9,1746.6,5.848829]
[1745483110338,5.603,1746.9,1746.6,5.84871665]
[1745483110538,5.603,1746.9,1746.6,7.00612083]
[1745483110916,5.603,1746.9,1746.7,3.0]
[1745483111132,5.603,1746.9,1746.6,4.28085969]
[1745483111327,5.603,1746.9,1746.8,0.12341141]
[1745483111534,5.603,1746.9,1746.7,0.12342154]
[1745483111732,5.603,1746.9,1746.8,0.12341141]
[1745483112121,5.603,1746.9,1746.6,4.57682942]
[1745483112441,5.603,1746.9,1746.7,0.11701158]
[1745483112649,5.603,1746.9,1746.6,10.3021315]
[1745483112812,5.603,1746.9,1746.7,0.11701158]
[1745483113012,5.603,1746.9,1746.6,4.57682942]
[1745483113220,5.603,1746.9,1746.7,0.11701158]
[1745483113428,5.603,1746.9,1746.4,8.72583761]
[1745483113630,5.603,1746.9,1746.3,5.72621464]
[1745483113631,5.603,1746.9,1746.6,3.0]
[1745483113874,5.603,1746.9,1746.7,0.10908533]
[1745483114045,5.603,1746.9,1746.6,6.14425104]
[1745483114245,5.603,1746.9,1746.7,0.10908533]
[1745483114414,5.603,1746.9,1746.5,8.72570724]
[1745483114749,5.603,1746.9,1746.6,0.10897899]
[1745483115062,5.603,1746.9,1746.6,3.10897899]
[1745483115538,5.603,1746.9,1746.6,9.26325971]
[1745483116047,5.602,1746.9,1746.8,3.0]
[1745483116234,5.602,1746.9,1746.8,0.10913344]
[1745483116434,5.602,1746.9,1746.6,0.42889041]
[1745483116609,5.602,1746.9,1746.7,0.10914356]
[1745483116812,5.602,1746.9,1746.5,8.72571155]
[1745483117008,5.602,1746.9,1746.6,0.10915369]
[1745483120221,5.602,1746.9,1746.6,5.83455043]
[1745483120423,5.602,1746.9,1746.6,0.10915369]
[1745483120843,0.5,1746.8,1746.6,0.10915369]
[1745483121630,0.5,1746.8,1746.6,0.54425992]
[1745483122243,0.5,1746.8,1746.6,6.26949468]
[1745483122408,0.5,1746.8,1746.6,6.26943819]
[1745483123560,0.0356,1747.1,1746.7,5.72508158]
[1745483123759,0.0356,1747.1,1746.8,3.0]
[1745483123961,5.602,1747.0,1746.8,0.10924991]
[1745483124650,5.602,1747.0,1746.6,0.43510623]
[1745483124850,18.9336,1747.3,1747.0,3.0]
[1745483125035,0.0356,1747.5,1747.1,3.10822954]
[1745483125243,5.1100223,1747.4,1747.1,8.83190519]
[1745483125571,5.1100223,1747.4,1747.2,3.0]
[1745483125871,5.1100223,1747.4,1747.3,0.10785992]
[1745483126369,5.601,1747.5,1747.3,0.53734052]
[1745483126526,5.601,1747.5,1747.4,3.0]
[1745483126869,5.601,1747.5,1747.4,3.1078498]
[1745483127163,18.895,1747.8,1747.4,3.1078498]
[1745483127367,5.601,1747.6,1747.4,3.1078498]
[1745483127726,5.601,1747.6,1747.4,3.3976989]
[1745483128038,0.0356,1747.9,1747.4,3.3976989]
[1745483128039,0.0356,1747.9,1747.5,15.25085577]